fUST/lending_fUST_20250323
["ID","MTS","AMOUNT","RATE_DAILY","PERIOD"]
[356582705,1742728147367,-500.0,0.00013698,2]
[356582706,1742728147389,-567.19,0.00013698,2]
[356582707,1742728147412,-525.02,0.00013698,2]
[356582708,1742728147433,-500.0,0.00013698,2]
[356582709,1742728147455,-500.0,0.00013698,2]
[356582710,1742728147476,-500.0,0.00013698,2]
[356582711,1742728147497,-253.04228843,0.00013698,2]
[356582712,1742728147518,-475.01032822,0.00013698,2]
[356582713,1742728147539,-500.0,0.00013698,2]
[356582714,1742728147562,-500.0,0.00013698,2]
[356582715,1742728147584,-500.0,0.00013698,2]
[356582716,1742728147606,-581.70814974,0.00013698,2]
[356582717,1742728147629,-500.0,0.00013698,2]
[356582718,1742728147654,-500.0,0.00013698,2]
[356582719,1742728147675,-500.0,0.00013698,2]
[356582720,1742728147697,-500.0,0.00013698,2]
[356582721,1742728147719,-500.0,0.00013698,2]
[356582722,1742728147741,-500.0,0.00013698,2]
[356582723,1742728147763,-901.12,0.00013698,2]
[356582724,1742728147784,-500.0,0.00013698,2]
[356582725,1742728147805,-500.0,0.00013698,2]
[356582726,1742728147827,-500.0,0.00013698,2]
[356582727,1742728147848,-500.0,0.00013698,2]
[356582728,1742728147868,-500.0,0.00013698,2]
[356582729,1742728147889,-500.0,0.00013698,2]
[356582730,1742728147909,-500.0,0.00013698,2]
[356582731,1742728147931,-500.0,0.00013698,2]
[356582732,1742728147955,-500.0,0.00013698,2]
[356582733,1742728147981,-1477.65,0.00013698,2]
[356582734,1742728148012,-500.0,0.00013698,2]
[356582735,1742728148049,-500.0,0.00013698,2]
[356582736,1742728148070,-739.04,0.00013698,2]
[356582737,1742728148091,-500.0,0.00013698,2]
[356582738,1742728148113,-641.43,0.00013698,2]
[356582739,1742728148133,-500.0,0.00013698,2]
[356582740,1742728148155,-500.0,0.00013698,2]
[356582741,1742728148176,-500.0,0.00013698,2]
[356582742,1742728148198,-500.0,0.00013698,2]
[356582743,1742728148225,-263.06776217,0.00013698,2]
[356582744,1742728148266,-500.0,0.00013698,2]
[356582745,1742728148303,-1678.65,0.00013698,2]
[356582746,1742728148325,-500.0,0.00013698,2]
[356582747,1742728148346,-500.0,0.00013698,2]
[356582748,1742728148366,-1621.83,0.00013698,2]
[356582749,1742728148387,-500.0,0.00013698,2]
[356582750,1742728148408,-500.0,0.00013698,2]
[356582751,1742728148429,-417.31732707,0.00013698,2]
[356582752,1742728148450,-2281.52,0.00013698,2]
[356582753,1742728148471,-500.0,0.00013698,2]
[356582754,1742728148492,-525.15,0.00013698,2]
[356582755,1742728148514,-500.0,0.00013698,2]
[356582756,1742728148539,-500.0,0.00013698,2]
[356582757,1742728148564,-606.91,0.00013698,2]
[356582758,1742728148588,-500.0,0.00013698,2]
[356582759,1742728148613,-500.0,0.00013698,2]
[356582760,1742728148638,-1279.24,0.00013698,2]
[356582761,1742728148667,-1073.9,0.00013698,2]
[356582762,1742728148693,-500.0,0.00013698,2]
[356582763,1742728148719,-500.0,0.00013698,2]
[356582764,1742728148743,-500.0,0.00013698,2]
[356582765,1742728148763,-500.0,0.00013698,2]
[356582766,1742728148784,-500.0,0.00013698,2]
[356582767,1742728148805,-769.37,0.00013698,2]
[356582768,1742728148826,-2065.24,0.00013698,2]
[356582769,1742728148846,-500.0,0.00013698,2]
[356582770,1742728148867,-500.0,0.00013698,2]
[356582771,1742728148887,-500.0,0.00013698,2]
[356582772,1742728148907,-986.57,0.00013698,2]
[356582773,1742728148928,-501.62,0.00013698,2]
[356582774,1742728148948,-593.32,0.00013698,2]
[356582775,1742728148969,-500.0,0.00013698,2]
[356582776,1742728148989,-560.98823452,0.00013698,2]
[356582777,1742728149009,-500.0,0.00013698,2]
[356582778,1742728149030,-575.23,0.00013698,2]
[356582779,1742728149050,-639.79,0.00013698,2]
[356582780,1742728149070,-585.46,0.00013698,2]
[356582781,1742728149090,-500.0,0.00013698,2]
[356582782,1742728149110,-500.0,0.00013698,2]
[356582783,1742728149130,-1439.86,0.00013698,2]
[356582784,1742728149150,-727.48,0.00013698,2]
[356582785,1742728149171,-537.43,0.00013698,2]
[356582786,1742728149191,-500.0,0.00013698,2]
[356582787,1742728149211,-500.0,0.00013698,2]
[356582788,1742728149231,-500.0,0.00013698,2]
[356582789,1742728149252,-500.0,0.00013698,2]
[356582790,1742728149273,-500.0,0.00013698,2]
[356582791,1742728149294,-634.53,0.00013698,2]
[356582792,1742728149315,-1158.87,0.00013698,2]
[356582793,1742728149337,-500.0,0.00013698,2]
[356582794,1742728149358,-500.0,0.00013698,2]
[356582795,1742728149382,-500.0,0.00013698,2]
[356582796,1742728149402,-598.46,0.00013698,2]
[356582797,1742728149423,-601.59,0.00013698,2]
[356582798,1742728149444,-1375.88,0.00013698,2]
[356582799,1742728149464,-360.40158827,0.00013698,2]
[356582800,1742728149485,-500.0,0.00013698,2]
[356582801,1742728149506,-2261.59,0.00013698,2]
[356582802,1742728149529,-500.0,0.00013698,2]
[356582803,1742728149550,-964.12,0.00013698,2]
[356582804,1742728149571,-1207.48,0.00013698,2]
[356582805,1742728149592,-500.0,0.00013698,2]
[356582806,1742728149613,-684.03,0.00013698,2]
[356582807,1742728149634,-500.0,0.00013698,2]
[356582808,1742728149659,-500.0,0.00013698,2]
[356582809,1742728149680,-2642.14,0.00013698,2]
[356582810,1742728149708,-8150.87,0.00013698,2]
[356582811,1742728149740,-2920.26,0.00013698,2]
[356582812,1742728149770,-500.0,0.00013698,2]
[356582813,1742728149797,-500.0,0.00013698,2]
[356582814,1742728149825,-807.54,0.00013698,2]
[356582815,1742728149851,-500.0,0.00013698,2]
[356582816,1742728149878,-500.0,0.00013698,2]
[356582817,1742728149905,-1492.62,0.00013698,2]
[356582818,1742728149933,-500.0,0.00013698,2]
[356582819,1742728149961,-5878.48,0.00013698,2]
[356582820,1742728149986,-500.0,0.00013698,2]
[356582821,1742728150012,-500.0,0.00013698,2]
[356582822,1742728150041,-500.0,0.00013698,2]
[356582823,1742728150067,-500.0,0.00013698,2]
[356582824,1742728150090,-16330.39,0.00013698,2]
[356582825,1742728150114,-1558.47,0.00013698,2]
[356582826,1742728150139,-500.0,0.00013698,2]
[356582827,1742728150164,-500.0,0.00013698,2]
[356582828,1742728150190,-508.67,0.00013698,2]
[356582829,1742728150218,-686.08,0.00013698,2]
[356582830,1742728150245,-500.0,0.00013698,2]
[356582831,1742728150275,-500.0,0.00013698,2]
[356582832,1742728150298,-500.0,0.00013698,2]
[356582833,1742728150320,-500.0,0.00013698,2]
[356582834,1742728150346,-500.0,0.00013698,2]
[356582835,1742728150373,-507.05840017,0.00013698,2]
[356582836,1742728150398,-536.28510437,0.00013698,2]
[356582837,1742728150424,-500.0,0.00013698,2]
[356582838,1742728150449,-753.57,0.00013698,2]
[356582839,1742728150475,-3894.14,0.00013698,2]
[356582840,1742728150500,-500.0,0.00013698,2]
[356582841,1742728150524,-500.0,0.00013698,2]
[356582842,1742728150548,-500.0,0.00013698,2]
[356582843,1742728150572,-500.0,0.00013698,2]
[356582844,1742728150596,-500.0,0.00013698,2]
[356582845,1742728150622,-781.41,0.00013698,2]
[356582846,1742728150650,-500.0,0.00013698,2]
[356582847,1742728150676,-500.0,0.00013698,2]
[356582848,1742728150702,-3748.74,0.00013698,2]
[356582849,1742728150732,-500.0,0.00013698,2]
[356582850,1742728150757,-2849.27,0.00013698,2]
[356582851,1742728150781,-500.0,0.00013698,2]
[356582852,1742728150806,-500.0,0.00013698,2]
[356582853,1742728150831,-500.0,0.00013698,2]
[356582854,1742728150856,-2340.57,0.00013698,2]
[356582855,1742728150880,-7944.86,0.00013698,2]
[356582856,1742728150904,-500.0,0.00013698,2]
[356582857,1742728150928,-1152.05,0.00013698,2]
[356582858,1742728150952,-500.0,0.00013698,2]
[356582859,1742728150976,-15424.89,0.00013698,2]
[356582860,1742728150999,-500.0,0.00013698,2]
[356582861,1742728151022,-500.0,0.00013698,2]
[356582862,1742728151045,-500.0,0.00013698,2]
[356582863,1742728151070,-564.41,0.00013698,2]
[356582864,1742728151093,-997.91,0.00013698,2]
[356582865,1742728151116,-778.21,0.00013698,2]
[356582866,1742728151140,-738.57,0.00013698,2]
[356582867,1742728151164,-3902.75,0.00013698,2]
[356582868,1742728151188,-500.0,0.00013698,2]
[356582869,1742728151212,-1333.27,0.00013698,2]
[356582870,1742728151235,-500.0,0.00013698,2]
[356582871,1742728151258,-500.0,0.00013698,2]
[356582872,1742728151282,-500.0,0.00013698,2]
[356582873,1742728151306,-500.0,0.00013698,2]
[356582874,1742728151329,-1556.6,0.00013698,2]
[356582875,1742728151352,-4701.59,0.00013698,2]
[356582876,1742728151376,-500.0,0.00013698,2]
[356582877,1742728151400,-696.1,0.00013698,2]
[356582878,1742728151424,-500.0,0.00013698,2]
[356582879,1742728151448,-730.58,0.00013698,2]
[356582880,1742728151472,-500.0,0.00013698,2]
[356582881,1742728151495,-546.64,0.00013698,2]
[356582882,1742728151518,-545.06,0.00013698,2]
[356582883,1742728151542,-1197.69,0.00013698,2]
[356582884,1742728151565,-1211.24,0.00013698,2]
[356582885,1742728151589,-550.11,0.00013698,2]
[356582886,1742728151613,-506.32,0.00013698,2]
[356582887,1742728151637,-903.02,0.00013698,2]
[356582888,1742728151665,-500.0,0.00013698,2]
[356582889,1742728151690,-694.23,0.00013698,2]
[356582890,1742728151714,-1249.2,0.00013698,2]
[356582891,1742728151739,-500.0,0.00013698,2]
[356582892,1742728151763,-500.0,0.00013698,2]
[356582893,1742728151788,-1464.29,0.00013698,2]
[356582894,1742728151811,-2254.51,0.00013698,2]
[356582895,1742728151833,-500.0,0.00013698,2]
[356582896,1742728151856,-846.28,0.00013698,2]
[356582897,1742728151878,-707.21,0.00013698,2]
[356582898,1742728151900,-856.26,0.00013698,2]
[356582899,1742728151922,-2996.74,0.00013698,2]
[356582900,1742728151945,-560.09,0.00013698,2]
[356582901,1742728151969,-500.0,0.00013698,2]
[356582902,1742728151995,-500.0,0.00013698,2]
[356582903,1742728152019,-2048.29,0.00013698,2]
[356582904,1742728152041,-516.38,0.00013698,2]
[356582905,1742728152064,-864.24,0.00013698,2]
[356582906,1742728152086,-682.52,0.00013698,2]
[356582907,1742728152108,-500.0,0.00013698,2]
[356582908,1742728152134,-500.0,0.00013698,2]
[356582909,1742728152158,-868.29,0.00013698,2]
[356582910,1742728152183,-3977.6,0.00013698,2]
[356582911,1742728152205,-3414.56,0.00013698,2]
[356582912,1742728152227,-500.0,0.00013698,2]
[356582913,1742728152250,-500.0,0.00013698,2]
[356582914,1742728152275,-500.0,0.00013698,2]
[356582915,1742728152298,-500.0,0.00013698,2]
[356582916,1742728152318,-500.0,0.00013698,2]
[356582917,1742728152338,-1439.84,0.00013698,2]
[356582918,1742728152358,-1257.74,0.00013698,2]
[356582919,1742728152672,-161.38029061,0.00013698,2]
[356582920,1742728152714,-9831.38,0.00013698,2]
[356582921,1742728152737,-500.0,0.00013698,2]
[356582922,1742728152757,-500.0,0.00013698,2]
[356582923,1742728152778,-500.0,0.00013698,2]
[356582924,1742728152797,-633.2,0.00013698,2]
[356582925,1742728152817,-1665.36,0.00013698,2]
[356582926,1742728152837,-500.0,0.00013698,2]
[356582927,1742728152856,-500.0,0.00013698,2]
[356582928,1742728152876,-500.0,0.00013698,2]
[356582929,1742728152896,-993.33,0.00013698,2]
[356582930,1742728152916,-5170.82,0.00013698,2]
[356582931,1742728152935,-8787.22,0.00013698,2]
[356582932,1742728152954,-1217.38,0.00013698,2]
[356582933,1742728152974,-500.0,0.00013698,2]
[356582934,1742728152994,-500.0,0.00013698,2]
[356582935,1742728153014,-500.0,0.00013698,2]
[356582936,1742728153034,-596.99,0.00013698,2]
[356582937,1742728153054,-17093.68,0.00013698,2]
[356582938,1742728153073,-125.43749818,0.00013698,2]
[356582939,1742728153831,-500.0,0.00013673,2]
[356582940,1742728153852,-733.11250182,0.00013698,2]
[356582941,1742728153872,-609.41,0.00013698,2]
[356582942,1742728153892,-2309.76,0.00013698,2]
[356582943,1742728153912,-500.0,0.00013698,2]
[356582944,1742728153932,-16811.91563818,0.00013698,2]
[356582945,1742728154010,-7287.88436182,0.00013698,2]
[356582946,1742728154031,-5003.14,0.00013698,2]
[356582947,1742728154051,-137042.31456071,0.00013698,2]
[356582953,1742728169075,-10511.56330068,0.000136,2]
[356582954,1742728169096,-80967.09543929,0.00013698,2]
[356582955,1742728169116,-500.0,0.00013698,2]
[356582956,1742728169136,-657.49,0.00013698,2]
[356582957,1742728169155,-324.00036003,0.00013698,2]
[356582958,1742728171082,-254.32963997,0.00013698,2]
[356582959,1742728171102,-1927.97,0.00013698,2]
[356582960,1742728171121,-500.0,0.00013698,2]
[356582961,1742728171142,-3731.88,0.00013698,2]
[356582962,1742728171161,-500.0,0.00013698,2]
[356582963,1742728171182,-500.0,0.00013698,2]
[356582964,1742728171203,-7449.91083907,0.00013698,2]
[356582965,1742728171230,-6158.73916093,0.00013698,2]
[356582966,1742728171252,-500.0,0.00013698,2]
[356582967,1742728171272,-780.5,0.00013698,2]
[356582968,1742728171294,-1493.54,0.00013698,2]
[356582969,1742728171315,-3595.491115,0.00013699,2]
[356582970,1742728171337,-849.93557487,0.00013699,2]
[356582971,1742728184357,-1352.0,0.000136,2]
[356583010,1742728232076,-300.0,0.00013599,2]
[356583012,1742728232085,-23067.0,0.000136,2]
[356583014,1742728232094,-6391.0,0.000136,2]
[356583016,1742728232104,-500.0,0.00013673,2]
[356583018,1742728232113,-501.73162151,0.00013673,2]
[356583020,1742728232122,-3592.54,0.00013698,2]
[356583022,1742728232131,-500.0,0.00013698,2]
[356583024,1742728232141,-500.0,0.00013698,2]
[356583026,1742728232150,-582.29,0.00013698,2]
[356583028,1742728232160,-500.0,0.00013698,2]
[356583030,1742728232169,-500.0,0.00013698,2]
[356583032,1742728232178,-500.0,0.00013698,2]
[356583035,1742728232187,-500.0,0.00013698,2]
[356583038,1742728232196,-500.0,0.00013698,2]
[356583041,1742728232205,-500.0,0.00013698,2]
[356583044,1742728232214,-2243.04,0.00013698,2]
[356583047,1742728232223,-500.0,0.00013698,2]
[356583050,1742728232232,-500.0,0.00013698,2]
[356583052,1742728232241,-500.0,0.00013698,2]
[356583054,1742728232250,-1104.05,0.00013698,2]
[356583056,1742728232259,-500.0,0.00013698,2]
[356583058,1742728232268,-500.0,0.00013698,2]
[356583060,1742728232277,-540.89,0.00013698,2]
[356583062,1742728232286,-956.33,0.00013698,2]
[356583064,1742728232295,-674.35,0.00013698,2]
[356583066,1742728232304,-767.24,0.00013698,2]
[356583068,1742728232314,-7613.83,0.00013698,2]
[356583070,1742728232323,-14782.19,0.00013698,2]
[356583072,1742728232332,-500.0,0.00013698,2]
[356583074,1742728232341,-1826.71,0.00013698,2]
[356583075,1742728232351,-500.0,0.00013698,2]
[356583076,1742728232360,-543.56,0.00013698,2]
[356583078,1742728232369,-707.79,0.00013698,2]
[356583080,1742728232379,-1726.73,0.00013698,2]
[356583082,1742728232388,-500.0,0.00013698,2]
[356583083,1742728232397,-500.0,0.00013698,2]
[356583084,1742728232406,-3740.13,0.00013698,2]
[356583085,1742728232415,-500.0,0.00013698,2]
[356583086,1742728232425,-667.1,0.00013698,2]
[356583087,1742728232434,-500.0,0.00013698,2]
[356583088,1742728232443,-1600.36128513,0.00013699,2]
[356583089,1742728232453,-2450.29686,0.00013699,2]
[356583090,1742728232462,-565.81940848,0.00013699,2]
[356583091,1742728232471,-278.76312087,0.00013699,2]
[356583092,1742728232481,-565.81940848,0.00013699,2]
[356583093,1742728232496,-565.81940848,0.00013699,2]
[356583094,1742728232510,-565.81940848,0.00013699,2]
[356583095,1742728232519,-565.81940848,0.00013699,2]
[356583096,1742728232528,-565.81940848,0.00013699,2]
[356583097,1742728232538,-565.81940848,0.00013699,2]
[356583098,1742728232547,-565.81940848,0.00013699,2]
[356583099,1742728232557,-565.81940848,0.00013699,2]
[356583100,1742728232566,-565.81940848,0.00013699,2]
[356583101,1742728232576,-565.81940848,0.00013699,2]
[356583102,1742728232585,-565.81940848,0.00013699,2]
[356583103,1742728232594,-565.81940848,0.00013699,2]
[356583104,1742728232603,-565.81940848,0.00013699,2]
[356583105,1742728232613,-565.81940848,0.00013699,2]
[356583106,1742728232622,-565.81940848,0.00013699,2]
[356583107,1742728232632,-565.81940848,0.00013699,2]
[356583108,1742728232641,-565.81940848,0.00013699,2]
[356583109,1742728232650,-565.81940848,0.00013699,2]
[356583110,1742728232660,-565.81940848,0.00013699,2]
[356583111,1742728232669,-565.81940848,0.00013699,2]
[356583112,1742728232679,-565.81940848,0.00013699,2]
[356583113,1742728232688,-565.81940848,0.00013699,2]
[356583114,1742728232697,-565.81940848,0.00013699,2]
[356583115,1742728232707,-565.81940848,0.00013699,2]
[356583116,1742728232718,-565.81940848,0.00013699,2]
[356583117,1742728232728,-565.81940848,0.00013699,2]
[356583118,1742728232738,-565.81940848,0.00013699,2]
[356583119,1742728232747,-565.81940848,0.00013699,2]
[356583120,1742728232756,-565.81940848,0.00013699,2]
[356583121,1742728232765,-565.81940848,0.00013699,2]
[356583122,1742728232774,-565.81940848,0.00013699,2]
[356583123,1742728232784,-565.81940848,0.00013699,2]
[356583124,1742728232793,-565.81940848,0.00013699,2]
[356583125,1742728232803,-565.81940848,0.00013699,2]
[356583126,1742728232813,-565.81940848,0.00013699,2]
[356583127,1742728232823,-565.81940848,0.00013699,2]
[356583128,1742728232832,-565.81940848,0.00013699,2]
[356583129,1742728232841,-565.81940848,0.00013699,2]
[356583130,1742728232850,-565.81940848,0.00013699,2]
[356583131,1742728232859,-565.81940848,0.00013699,2]
[356583132,1742728232869,-565.81940848,0.00013699,2]
[356583133,1742728232878,-565.81940848,0.00013699,2]
[356583134,1742728232888,-565.81940848,0.00013699,2]
[356583135,1742728232898,-565.81940848,0.00013699,2]
[356583136,1742728232908,-565.81940848,0.00013699,2]
[356583137,1742728232918,-565.81940848,0.00013699,2]
[356583138,1742728232927,-565.81940848,0.00013699,2]
[356583139,1742728232937,-565.81940848,0.00013699,2]
[356583140,1742728232947,-565.81940848,0.00013699,2]
[356583141,1742728232956,-565.81940848,0.00013699,2]
[356583142,1742728232966,-565.81940848,0.00013699,2]
[356583143,1742728232975,-565.81940848,0.00013699,2]
[356583144,1742728232984,-565.81940848,0.00013699,2]
[356583145,1742728232995,-565.81940848,0.00013699,2]
[356583146,1742728233005,-554.17018536,0.00013699,2]
[356583147,1742728233014,-554.17018536,0.00013699,2]
[356583148,1742728233024,-554.17018536,0.00013699,2]
[356583149,1742728233034,-554.17018536,0.00013699,2]
[356583150,1742728233044,-554.17018536,0.00013699,2]
[356583151,1742728233053,-554.17018536,0.00013699,2]
[356583152,1742728233063,-554.17018536,0.00013699,2]
[356583153,1742728233073,-554.17018536,0.00013699,2]
[356583154,1742728233083,-554.17018536,0.00013699,2]
[356583155,1742728233093,-554.17018536,0.00013699,2]
[356583156,1742728233102,-554.17018536,0.00013699,2]
[356583157,1742728233112,-554.17018536,0.00013699,2]
[356583158,1742728233127,-554.17018536,0.00013699,2]
[356583159,1742728233138,-554.17018536,0.00013699,2]
[356583160,1742728233149,-554.17018536,0.00013699,2]
[356583161,1742728233160,-554.17018536,0.00013699,2]
[356583162,1742728233170,-554.17018536,0.00013699,2]
[356583163,1742728233180,-554.17018536,0.00013699,2]
[356583164,1742728233190,-554.17018536,0.00013699,2]
[356583165,1742728233200,-554.17018536,0.00013699,2]
[356583166,1742728233211,-554.17018536,0.00013699,2]
[356583167,1742728233221,-554.17018536,0.00013699,2]
[356583168,1742728233231,-554.17018536,0.00013699,2]
[356583169,1742728233242,-554.17018536,0.00013699,2]
[356583170,1742728233252,-554.17018536,0.00013699,2]
[356583171,1742728233262,-554.17018536,0.00013699,2]
[356583172,1742728233272,-554.17018536,0.00013699,2]
[356583173,1742728233282,-554.17018536,0.00013699,2]
[356583174,1742728233293,-554.17018536,0.00013699,2]
[356583175,1742728233304,-554.17018536,0.00013699,2]
[356583176,1742728233314,-554.17018536,0.00013699,2]
[356583177,1742728233324,-554.17018536,0.00013699,2]
[356583178,1742728233335,-554.17018536,0.00013699,2]
[356583179,1742728233345,-554.17018548,0.00013699,2]
[356583180,1742728233356,-151.0,0.00013964,2]
[356583181,1742728233366,-6999.0,0.00013972,3]
[356583182,1742728233376,-538.04637614,0.00013972,2]
[356583183,1742728233386,-500.0,0.00013972,2]
[356583184,1742728233395,-500.0,0.00013972,2]
[356583185,1742728233406,-500.0,0.00013972,2]
[356583186,1742728233416,-804.19,0.00013972,2]
[356583187,1742728233427,-500.0,0.00013972,2]
[356583188,1742728233437,-517.56,0.00013972,2]
[356583189,1742728233447,-500.0,0.00013972,2]
[356583190,1742728233457,-500.0,0.00013972,2]
[356583191,1742728233468,-500.0,0.00013972,2]
[356583192,1742728233479,-813.3,0.00013972,2]
[356583193,1742728233489,-500.0,0.00013972,2]
[356583194,1742728233499,-2000.0,0.00013972,2]
[356583195,1742728233510,-500.0,0.00013972,2]
[356583196,1742728233520,-735.07,0.00013972,2]
[356583197,1742728233531,-1197.91,0.00013972,2]
[356583198,1742728233541,-500.0,0.00013972,2]
[356583199,1742728233552,-500.0,0.00013972,2]
[356583200,1742728233563,-500.0,0.00013972,2]
[356583201,1742728233573,-553.82,0.00013972,2]
[356583202,1742728233584,-500.0,0.00013972,2]
[356583203,1742728233594,-500.0,0.00013972,2]
[356583204,1742728233605,-500.0,0.00013972,2]
[356583205,1742728233615,-500.0,0.00013972,2]
[356583206,1742728233626,-500.0,0.00013972,2]
[356583207,1742728233637,-694.09,0.00013972,2]
[356583208,1742728233648,-500.0,0.00013972,2]
[356583209,1742728233658,-500.0,0.00013972,2]
[356583210,1742728233668,-154.450712,0.00013972,2]
[356583211,1742728233678,-711.07,0.00013972,2]
[356583212,1742728233688,-997.07,0.00013972,2]
[356583213,1742728233698,-512.97,0.00013972,2]
[356583214,1742728233709,-500.0,0.00013972,2]
[356583215,1742728233723,-525.02,0.00013972,2]
[356583216,1742728233733,-211.87574099,0.00013972,2]
[356583217,1742728233745,-500.0,0.00013972,2]
[356583218,1742728233755,-500.0,0.00013972,2]
[356583219,1742728233767,-500.0,0.00013972,2]
[356583220,1742728233777,-500.0,0.00013972,2]
[356583221,1742728233787,-500.0,0.00013972,2]
[356583222,1742728233800,-500.0,0.00013972,2]
[356583223,1742728233811,-500.0,0.00013972,2]
[356583224,1742728233823,-500.0,0.00013972,2]
[356583225,1742728233834,-500.0,0.00013972,2]
[356583226,1742728233845,-901.12,0.00013972,2]
[356583227,1742728233855,-500.0,0.00013972,2]
[356583228,1742728233866,-500.0,0.00013972,2]
[356583229,1742728233876,-500.0,0.00013972,2]
[356583230,1742728233886,-500.0,0.00013972,2]
[356583231,1742728233898,-500.0,0.00013972,2]
[356583232,1742728233908,-500.0,0.00013972,2]
[356583233,1742728233919,-500.0,0.00013972,2]
[356583234,1742728233930,-1477.65,0.00013972,2]
[356583235,1742728233940,-500.0,0.00013972,2]
[356583236,1742728233951,-500.0,0.00013972,2]
[356583237,1742728233961,-739.04,0.00013972,2]
[356583238,1742728233971,-500.0,0.00013972,2]
[356583239,1742728233981,-641.43,0.00013972,2]
[356583240,1742728233991,-500.0,0.00013972,2]
[356583241,1742728234002,-500.0,0.00013972,2]
[356583242,1742728234012,-500.0,0.00013972,2]
[356583243,1742728234023,-500.0,0.00013972,2]
[356583244,1742728234034,-500.0,0.00013972,2]
[356583245,1742728234045,-153.590133,0.00013972,2]
[356583246,1742728234055,-1678.65,0.00013972,2]
[356583247,1742728234065,-500.0,0.00013972,2]
[356583248,1742728234076,-500.0,0.00013972,2]
[356583249,1742728234085,-1621.83,0.00013972,2]
[356583250,1742728234095,-500.0,0.00013972,2]
[356583251,1742728234106,-500.0,0.00013972,2]
[356583252,1742728234116,-2281.52,0.00013972,2]
[356583253,1742728234126,-500.0,0.00013972,2]
[356583254,1742728234136,-525.15,0.00013972,2]
[356583255,1742728234146,-500.0,0.00013972,2]
[356583256,1742728234156,-500.0,0.00013972,2]
[356583257,1742728234166,-606.91,0.00013972,2]
[356583258,1742728234176,-500.0,0.00013972,2]
[356583259,1742728234187,-500.0,0.00013972,2]
[356583260,1742728234196,-1279.24,0.00013972,2]
[356583261,1742728234207,-1073.9,0.00013972,2]
[356583262,1742728234216,-500.0,0.00013972,2]
[356583263,1742728234226,-500.0,0.00013972,2]
[356583264,1742728234236,-500.0,0.00013972,2]
[356583265,1742728234246,-500.0,0.00013972,2]
[356583266,1742728234257,-500.0,0.00013972,2]
[356583267,1742728234267,-769.37,0.00013972,2]
[356583268,1742728234278,-2065.24,0.00013972,2]
[356583269,1742728234288,-500.0,0.00013972,2]
[356583270,1742728234298,-500.0,0.00013972,2]
[356583271,1742728234309,-500.0,0.00013972,2]
[356583272,1742728234319,-986.57,0.00013972,2]
[356583273,1742728234331,-501.62,0.00013972,2]
[356583274,1742728234341,-593.32,0.00013972,2]
[356583275,1742728234352,-500.0,0.00013972,2]
[356583276,1742728234363,-500.0,0.00013972,2]
[356583277,1742728234374,-575.23,0.00013972,2]
[356583278,1742728234384,-639.79,0.00013972,2]
[356583279,1742728234394,-585.46,0.00013972,2]
[356583280,1742728234405,-500.0,0.00013972,2]
[356583281,1742728234415,-500.0,0.00013972,2]
[356583282,1742728234426,-1439.86,0.00013972,2]
[356583283,1742728234436,-727.48,0.00013972,2]
[356583284,1742728234447,-537.43,0.00013972,2]
[356583285,1742728234458,-500.0,0.00013972,2]